Cogmind - Beta 13 @@@ ROGUE MODE // 2024.05.29 @ 00:03:46 Player: saltine Result: Destroyed by H-66 Slayer with Gauss Rifle Performance ------------- Evolutions (4) 2000 Regions Visited (5) 1000 Robots Destroyed (71) 355 Value Destroyed (2473) 2473 Prototype IDs (2) 40 Alien Tech Used (0) 0 Bonus (523) 523 TOTAL SCORE: 6391 Bonus ------- High Alert Combat Kills 456 Follower Combat Kills 180 Friendly Fire -113 Cogmind --------- Core Integrity 0/850 Matter 219/300 Energy 84/100 System Corruption 4% Temperature Cool (0) Movement Core (100) Ox1 Location -6/Factory Parts ------- > --- POWER (2) -------- (None) > --- PROPULSION (3) --- (None) > --- UTILITY (7) ------ (None) > --- WEAPON (3) ------- Gauss Rifle > --- INVENTORY (5) ---- (None) Peak State ------------ > --- POWER ------------ Light Nuclear Core Fission Core > --- PROPULSION ------- VTOL Module > --- UTILITY ---------- Advanced Targeting Computer Improved Core Shielding Hardened Medium Armor Plating Hardened Heavy Armor Plating Makeshift Light Armor Plating > --- WEAPON ----------- Mini Grenade Launcher Mini Grenade Launcher Ripper > --- INVENTORY -------- Fission Core Advanced Assault Cannon Mini Grenade Launcher Long-range Missile Launcher Long-range Missile Launcher [Rating: 43] Favorites ----------- Power Light Nuclear Core Engine Light Ion Engine Power Core Light Nuclear Core Propulsion Light Treads Treads Light Treads Flight Unit VTOL Module Utility Advanced Targeting Computer Device Structural Scanner Storage Small Storage Unit Processor Advanced Targeting Computer Hackware Hacking Suite Protection Makeshift Light Armor Plating Weapon Mini Grenade Launcher Energy Gun Heavy Laser Ballistic Gun Light Assault Rifle Ballistic Cannon Advanced Assault Cannon Launcher Mini Grenade Launcher Special Weapon Enhanced Flamer Slashing Weapon Ripper Build | -11 -10 -10 -10 -8 -6 ------- Run | Yrd Mat Min Sub Rec Fac Slots Evolved 8 | . . . . . 8 Power 1 | . . . . . 1 Propulsion 1 | . . . . . 1 Utility 5 | . . . . . 5 Weapon 1 | . . . . . 1 Parts Attached 43 | 6 7 . 6 5 19 Power 7 | 1 1 . 2 . 3 Engine 2 | 1 1 . . . . Core 5 | . . . 2 . 3 Reactor . | . . . . . . Propulsion 7 | 2 2 . . 1 2 Treads 6 | 2 2 . . 1 1 Leg . | . . . . . . Wheel . | . . . . . . Hover . | . . . . . . Flight 1 | . . . . . 1 Utility 11 | 1 2 . 1 3 4 Device 3 | . 2 . . 1 . Storage 1 | 1 . . . . . Processor 1 | . . . . 1 . Hackware 1 | . . . . 1 . Protection 5 | . . . 1 . 4 Artifact . | . . . . . . Weapon 18 | 2 2 . 3 1 10 Energy Gun 1 | . . . . . 1 Energy Cannon . | . . . . . . Ballistic Gun 6 | 2 2 . . . 2 Ballistic Cannon 1 | . . . . . 1 Launcher 8 | . . . 2 . 6 Special Weapon 1 | . . . 1 . . Impact Weapon . | . . . . . . Slashing Weapon 1 | . . . . 1 . Piercing Weapon . | . . . . . . Special Melee Weapon . | . . . . . . Unidentified Prototypes . | . . . . . . Parts Lost 21 | . . . 2 . 19 Power 3 | . . . . . 3 Propulsion 2 | . . . . . 2 Utility 7 | . . . 1 . 6 Weapon 9 | . . . 1 . 8 Highest Loss Streak 13 | . . . 2 . 13 To Critical Strikes . | . . . . . . Average Slot Usage (%) 81 | . 87 100 85 80 66 Engine 4 | . 14 14 3 . . Core 7 | . . . 11 14 5 Treads 22 | . 28 28 28 28 10 Device 4 | . 3 14 1 11 . Storage 3 | . 14 14 1 . . Processor 2 | . . . . 2 5 Protection 10 | . . . 12 . 21 Ballistic Gun 9 | . 27 28 8 . . Launcher 9 | . . . 13 14 12 Special Weapon 1 | . . . 6 . . Slashing Weapon 2 | . . . . 7 5 Naked Turns 10 | . . . . . 10 Heaviest Build 49 | 11 12 12 26 10 49 Greatest Support 60 | 40 40 40 40 40 60 Greatest Overweight (x) 14 | 3 . . . . 14 Average Overweight (x) . | 1 . . . . 1 Largest Inventory Capacity 8 | 8 8 8 8 5 5 Average Capacity 5 | 7 8 8 5 5 5 Most Carried 8 | 2 8 8 8 5 5 Average Carried 5 | 1 6 8 5 4 4 Final Capacity 8 | 8 8 8 5 5 5 Final Carried 8 | 2 8 8 5 5 . Scrap Engine Consumption 4 | . . . . 4 . Class Distribution -------------------- 100% | Mutant Dominant Class ---------------- Mutant | -10/Materials Mutant | -10/Mines Mutant | -10/Subcaves Mutant | -8/Recycling Mutant | -6/Factory Resources | -11 -10 -10 -10 -8 -6 ----------- Run | Yrd Mat Min Sub Rec Fac Matter Collected 1454 | 250 40 76 162 . 926 Remotely . | . . . . . . Salvage Created 1822 | . 40 19 111 . 1652 Parts 96 | . . 2 8 . 86 Haulers Intercepted 1 | . . . . . 1 Recyclers Shooed 2 | . . . . . 2 Parts Field Recycled . | . . . . . . Retrieved Matter . | . . . . . . Parts Self-Destructed 11 | . . . 11 . . Prevented . | . . . . . . Kills | -11 -10 -10 -10 -8 -6 ------- Run | Yrd Mat Min Sub Rec Fac Combat Hostiles Destroyed 45 | . 1 1 9 . 34 Guns 3 | . 1 1 . . 1 Cannons 1 | . . . . . 1 AOE 41 | . . . 9 . 32 Classes Destroyed 16 | . 1 1 2 . 12 Worker 2 | . . . . . 2 Builder 8 | . . . . . 8 Tunneler 2 | . . . . . 2 Hauler 1 | . . . . . 1 Recycler 7 | . . . . . 7 Operator 2 | . . . . . 2 Turret 2 | . . . 2 . . Watcher 1 | . . . . . 1 Swarmer 9 | . . 1 4 . 4 Grunt 15 | . 1 . . . 14 Protector 3 | . . . . . 3 Sentry 1 | . . . . . 1 Specialist 5 | . . . . . 5 Hunter 5 | . . . . . 5 Programmer 2 | . . . . . 2 Subdweller 5 | . . . 5 . . Thug 1 | . . . . . 1 Best Kill Streak 17 | . 1 1 4 . 17 Combat Bots Only 11 | . 1 1 4 . 11 Max Kills in Single Turn 6 | . 1 1 2 . 6 Gunslinging . | . . . . . . Exploded 3 | . . . 2 . 3 Melee . | . . . . . . Uniques/NPCs Destroyed . | . . . . . . Combat | -11 -10 -10 -10 -8 -6 -------- Run | Yrd Mat Min Sub Rec Fac Hostile Shots Fired 302 | . 14 . 43 . 245 Missed 117 | . 2 . 16 . 99 Damage Taken 3650 | . 186 . 368 . 3096 Core 914 | . 14 . 49 . 851 Absorbed by Shields . | . . . . . . Redirected to Shielding 100 | . . . . . 100 Core Remaining (%) 87 | 100 . . . 74 . Volleys Fired 92 | . 8 1 35 . 48 Largest 2 | . 2 2 2 . 2 Hottest 110 | . 40 40 110 . 78 Shots Fired 144 | . 16 2 44 . 82 Gun 45 | . 16 2 21 . 6 Cannon 5 | . . . . . 5 Launcher 89 | . . . 18 . 71 Special 5 | . . . 5 . . Kinetic 48 | . 16 2 21 . 9 Thermal 7 | . . . 5 . 2 Explosive 89 | . . . 18 . 71 Electromagnetic . | . . . . . . Robot Hit Streak 20 | . 5 6 20 . 12 Robot Miss Streak 3 | . 2 . 3 . 2 Penetration Max . | . . . . . . Secondary Targets . | . . . . . . Shots Hit Robots 105 | . 8 1 34 . 62 Core Hits 199 | . 3 2 20 . 174 Critical Kills . | . . . . . . Critical Parts Destroyed . | . . . . . . Critical Strikes 1 | . . . . . 1 Blast 1 | . . . . . 1 Melee Attacks 1 | . . . . . 1 Impact . | . . . . . . Slashing 1 | . . . . . 1 Piercing . | . . . . . . Sneak Attacks 1 | . . . . . 1 Combat Hostiles . | . . . . . . Follow-up Attacks . | . . . . . . Damage Inflicted 8717 | . 84 31 1262 . 7340 Guns 276 | . 84 24 74 . 94 Cannons 96 | . . . . . 96 Explosions 8230 | . . . 1168 . 7062 Melee 88 | . . . . . 88 Ramming 7 | . . 7 . . . Kinetic 336 | . 84 24 74 . 154 Thermal 56 | . . . 20 . 36 Explosive 8191 | . . . 1168 . 7023 Electromagnetic 39 | . . . . . 39 Impact . | . . . . . . Slashing 88 | . . . . . 88 Piercing . | . . . . . . Highest Corruption 4 | . . . . . 4 Average Corruption 3 | . . . . . 3 Corruption Purged . | . . . . . . Corruption Blocked . | . . . . . . Effects 2 | . . . . . 2 Heat Flow Errors 1 | . . . . . 1 Weapon Failures 1 | . . . . . 1 Overload Shots . | . . . . . . Overflow Damage 156 | . . . 49 . 107 Projectiles 4 | . . . . . 4 Explosions 152 | . . . 49 . 103 Melee . | . . . . . . Knockbacks 2 | . . . . . 2 Impact . | . . . . . . Kinetic 2 | . . . . . 2 Secondary . | . . . . . . Self-Inflicted Damage 665 | . . . 48 . 617 Shots 31 | . . . 3 . 28 Rammed 4 | . . 4 . . . Targets Rammed 4 | . . 4 . . . Kicked . | . . . . . . Crushed . | . . . . . . Highest Temperature 297 | . 9 . 297 . 165 Average Temperature 70 | . 9 . 162 . 65 Received Heat Transfer 949 | . 105 . 445 . 399 Siege Activations . | . . . . . . Robots Corrupted . | . . . . . . Combat Hostiles . | . . . . . . Parts Fried . | . . . . . . Impact Corruptions . | . . . . . . Robots Melted . | . . . . . . Combat Hostiles . | . . . . . . Parts Melted . | . . . . . . Heat Transferred 234 | . . . 160 . 74 Parts Sabotaged 2 | . . . . . 2 Parts Stolen . | . . . . . . Parts Stripped . | . . . . . . Power Chain Reactions . | . . . . . . Alert | -11 -10 -10 -10 -8 -6 ------- Run | Yrd Mat Min Sub Rec Fac Peak Influence 806 | . 71 108 . 480 806 Initial 480 | . . 27 . 480 54 Average 233 | . 27 19 . 407 327 Maximum Alert Level 3 | . . . . 2 3 Low Security (%) 45 | 100 100 100 . 1 20 Level 1 26 | . . . . 34 44 Level 2 26 | . . . . 64 30 Level 3 1 | . . . . . 3 Level 4 . | . . . . . . Level 5 . | . . . . . . High Security . | . . . . . . Max Security . | . . . . . . Squads Dispatched 9 | . 1 . . . 8 Investigation 1 | . . . . . 1 Extermination 1 | . . . . . 1 Reinforcement 6 | . 1 . . . 5 Assault 1 | . . . . . 1 Garrison . | . . . . . . Intercept . | . . . . . . Searches Triggered . | . . . . . . Construction Impeded 2 | . . . . . 2 Haulers Reinforced . | . . . . . . Active Scanning Responses . | . . . . . . Cargo Convoy Interrupts 1 | . . . . . 1 Stealth | -11 -10 -10 -10 -8 -6 --------- Run | Yrd Mat Min Sub Rec Fac Distress Signals 3 | . . 1 . . 2 Communications Jammed . | . . . . . . Distress Signals . | . . . . . . Times Spotted 113 | . 6 3 54 . 50 Peak Tracking Total 9 | . 3 2 6 . 9 Tactical Retreats 4 | . 1 . 3 . . Traps | -11 -10 -10 -10 -8 -6 ------- Run | Yrd Mat Min Sub Rec Fac Traps Triggered 3 | . 2 . . . 1 Indirectly . | . . . . . . Trap Hack Attempts . | . . . . . . Triggered . | . . . . . . Disarmed . | . . . . . . Reprogrammed . | . . . . . . Reused . | . . . . . . Traps Extracted . | . . . . . . Installed . | . . . . . . Triggered . | . . . . . . Machines | -11 -10 -10 -10 -8 -6 ---------- Run | Yrd Mat Min Sub Rec Fac Machines Disabled 14 | . . . 3 . 11 Max in Single Turn 5 | . . . 3 . 5 Garrison Access 1 | . . . . . 1 Machines Repaired . | . . . . . . Machines Dismantled . | . . . . . . Machines Sabotaged . | . . . . . . Overloaded Fab Kills . | . . . . . . Hacking | -11 -10 -10 -10 -8 -6 --------- Run | Yrd Mat Min Sub Rec Fac Machines Accessed 19 | . 2 . . 10 7 Terminals 11 | . 2 . . 5 4 Fabricators 1 | . . . . . 1 Repair Stations . | . . . . . . Recycling Units 5 | . . . . 5 . Scanalyzers . | . . . . . . Garrison Access 2 | . . . . . 2 Total Hacks 34 | . 6 . . 19 9 Successful 15 | . 3 . . 10 2 Failed 19 | . 3 . . 9 7 Catastrophic 5 | . . . . . 5 Database Lockouts . | . . . . . . Manual 15 | . 5 . . 6 4 Terminals 22 | . 6 . . 11 5 Fabricators 1 | . . . . . 1 Repair Stations . | . . . . . . Recycling Units 8 | . . . . 8 . Scanalyzers . | . . . . . . Garrison Access 3 | . . . . . 3 Terminal Hacks 4 | . 1 . . 3 . Prototype ID Bank 1 | . . . . 1 . Alert Level 1 | . . . . 1 . Unreport Threat 1 | . . . . 1 . Registered Components 1 | . 1 . . . . Fabricator Hacks 1 | . . . . . 1 Network Status 1 | . . . . . 1 Repair Station Hacks . | . . . . . . Recycling Unit Hacks 7 | . . . . 7 . Report Inventory 4 | . . . . 4 . Retrieve Components 3 | . . . . 3 . Scanalyzer . | . . . . . . Garrison Access Hacks 1 | . . . . . 1 Seal Access 1 | . . . . . 1 Unauthorized Hacks 2 | . 2 . . . . Terminals 2 | . 2 . . . . Botnet 2 | . 2 . . . . Fabricators . | . . . . . . Repair Stations . | . . . . . . Recycling Units . | . . . . . . Scanalyzers . | . . . . . . Garrison Access . | . . . . . . Data Cores Recovered . | . . . . . . Used . | . . . . . . Hacking Detections 14 | . 2 . . 6 6 Full Trace Events 1 | . . . . . 1 Feedback Events . | . . . . . . Feedback Blocked . | . . . . . . Robot Schematics Acquired . | . . . . . . Robots Built . | . . . . . . Authchips . | . . . . . . Time . | . . . . . . Total Robot Build Rating . | . . . . . . Part Schematics Acquired . | . . . . . . Parts Built . | . . . . . . Authchips . | . . . . . . Time . | . . . . . . Total Part Build Rating . | . . . . . . Parts Repaired . | . . . . . . Time . | . . . . . . Parts Recycled . | . . . . . . Recycled Matter . | . . . . . . Retrieved Matter . | . . . . . . Retrieved Components 6 | . . . . 6 . Parts Scanalyzed . | . . . . . . Part Schematics Acquired . | . . . . . . Parts Damaged . | . . . . . . Bothacking | -11 -10 -10 -10 -8 -6 ------------ Run | Yrd Mat Min Sub Rec Fac Used RIF Installer . | . . . . . . Robots Hacked . | . . . . . . Non-combat . | . . . . . . Combat . | . . . . . . Robot Hacks Applied . | . . . . . . Relay Couplers Released . | . . . . . . Fabnet Peak Effective % . | . . . . . . Robots Rewired . | . . . . . . Allies Hacked . | . . . . . . Hacks Repelled . | . . . . . . Allies | -11 -10 -10 -10 -8 -6 -------- Run | Yrd Mat Min Sub Rec Fac Total Allies 6 | . . 3 . . 3 Largest Group 3 | . . 3 3 . 3 Highest-Rated Group 93 | . . 40 40 . 93 Highest-Rated Ally 31 | . . 16 16 . 31 Total Orders . | . . . . . . Ally Attacks 63 | . . 4 42 . 17 Total Damage 589 | . . 27 304 . 258 Kills 9 | . . 2 5 . 2 Allies Corrupted . | . . . . . . Allies Melted . | . . . . . . Intel | -11 -10 -10 -10 -8 -6 ------- Run | Yrd Mat Min Sub Rec Fac Robot Analysis Total . | . . . . . . Derelict Logs Recovered 2 | . . 1 1 . . Drone Launches . | . . . . . . Drone Recoveries . | . . . . . . Exploration | -11 -10 -10 -10 -8 -6 ------------- Run | Yrd Mat Min Sub Rec Fac Turns Passed 4146 | 86 331 670 1114 620 1325 Spaces Moved 1877 | 49 180 209 635 365 439 Core 62 | 30 . . . . 32 Treads 1778 | 19 180 209 635 365 370 Legs . | . . . . . . Wheels . | . . . . . . Hover . | . . . . . . Flight 37 | . . . . . 37 Fastest Speed 50 | 50 160 160 160 160 50 Average Speed 182 | 155 160 160 160 163 253 Slowest Speed 995 | 200 160 160 160 165 995 Overloaded Moves . | . . . . . . Propulsion Burnouts . | . . . . . . Robots Hopped . | . . . . . . Cave-ins Triggered 1 | . . . . . 1 Exploration Rate (%) 35 | 4 39 35 32 89 15 Regions Visited 5 Branch Regions 3 Pre-discovered Areas 1 | . . 1 . . . Known Exits Taken . | . . . . . . Unknown Exits Taken 5 | 1 1 1 1 1 . Scrap Searched 7 | . . 1 6 . . Spaces Dug . | . . . . . . Terrain Destroyed 455 | . . . 94 . 361 Melee . | . . . . . . Projectile 2 | . . . . . 2 AOE 453 | . . . 94 . 359 Terrain Rammed . | . . . . . . Walls Destroyed . | . . . . . . Machines Disabled . | . . . . . . Actions | -11 -10 -10 -10 -8 -6 --------- Run | Yrd Mat Min Sub Rec Fac Total 2446 | 56 205 541 692 388 564 Wait 392 | . 5 328 . 16 43 Move 1873 | 48 179 209 634 364 439 Hop . | . . . . . . Pick Up 23 | 2 6 . 3 1 11 Fast Attach 20 | 6 7 . 2 3 2 Attach 17 | . . . . 1 16 Detach . | . . . . . . Swap 6 | . . . 4 1 1 Drop 15 | . . . 10 2 3 Fire 92 | . 8 1 35 . 48 Melee 1 | . . . . . 1 Ram . | . . . . . . Kick . | . . . . . . Crush 3 | . . 3 . . . Escape Stasis . | . . . . . . Rewire . | . . . . . . Trap . | . . . . . . Miscellaneous 4 | . . . 4 . . Route ------- -11/Scrapyard -10/Materials (discovered 2 exits: [*Mat] / [*Min]) -10/Mines (discovered 2 exits: [*Mat] / [*Sub]) -10/Subcaves (discovered 3 exits: [*Mat x2] / *Rec) -8/Recycling -6/Factory (discovered 1 exit: [*Fac]) History --------- Turn | Location | Event 2 | -11/Scrapyard | Met Revision 17 14 | -11/Scrapyard | Discovered new exit (range 16) 87 | -11/Scrapyard | Entered Materials 193 | -10/Materials | Discovered new exit (range 15) 316 | -10/Materials | Build established: Mutant 346 | -10/Materials | Discovered new exit (range 8) 418 | -10/Materials | Entered Mines 631 | -10/Mines | Discovered new exit (range 11) 648 | -10/Mines | Learned location of Zion (-6) 648 | -10/Mines | Assisted by bots powering up and referring to "LRC-V3" 889 | -10/Mines | Discovered new exit (range 8) 1088 | -10/Mines | Entered Subcaves 1088 | -10/Subcaves | Accompanied by 3 allies 1088 | -10/Subcaves | Discovered new exit (range 15) 1743 | -10/Subcaves | Discovered new exit (range 15) 1820 | -10/Subcaves | Disturbed a concealed Subdweller 2141 | -10/Subcaves | Discovered new exit (range 15) 2202 | -10/Subcaves | Entered Recycling 2202 | -8/Recycling | Found Scrap Engine 2794 | -8/Recycling | Discovered new exit (range 16) 2822 | -8/Recycling | Entered Factory 2822 | -6/Factory | Evolved 8 slots: Power x1, Propulsion x1, Utility x5, Weapon x1 2861 | -6/Factory | Discovered new exit (range 9) 3297 | -6/Factory | Allied Derelicts emerged from ambush trap array 3872 | -6/Factory | First assault squad dispatched 4006 | -6/Factory | Lost 3 parts (1n1u1w) 4092 | -6/Factory | Cargo convoy interrupted 4119 | -6/Factory | Core integrity fell below 50% 4138 | -6/Factory | Core integrity fell below 20% 4146 | -6/Factory | Crushed by falling debris 4147 | -6/Factory | Destroyed by H-66 Slayer with Gauss Rifle Last Messages --------------- 04137_ System corrupted: Heat flow error (+167). 04137_ Penetrated by Slug. 04137_ Hvy. Laser destroyed. 04137_ Penetrated by Slug. 04137_ R-10 Processor collects Hcp. Battery. 04138_ The unstable cave ceiling collapses. 04139_ Acquired 92 matter. 04139_ K-01 Serf collects debris. 04140_ Acquired Gauss Rifle. 04140_ Penetrated by Slug. 04142_ R-10 Processor collects Gravmag System. 04142_ K-01 Serf collects debris. 04144_ The unstable cave ceiling collapses. 04144_ Slug penetrates H-66 Slayer. 04144_ Slug penetrates Wall. 04146_ The unstable cave ceiling collapses. 04146_ Crushed by falling debris. 04146_ Slug penetrates H-66 Slayer. 04146_ K-01 Serf collects debris. 04147_ R-10 Processor collects Imp. Heat Sink. Map ----- +----------------------------------------------------+ | ??????????????????????????????????????????# #? | | ??????????????????????????????????????????# #? | | ??????????????????????????????????????????# #? | | ??????????????????????????????????????????# # | | ??????????????????????????????????+???##### + | | ?????????????????????????????????? ???? # | | ?????????????????????????????????# ??###### # | | ?????????????????????????????????# ?## # # += | | ???????????????????????########??# ?# ## "#" ### | | ???????????????????????# ! #??# ## # | | ???????????????????????# #??# ## | | ???????????????????????# #??# # ! | | ???????????????????###?# #??# #### "" | | ??????????????????## ?# #??# # "" | | ?????????????###### ## #### "" | | ????????????## ### " | | ???????????## # # # ## ## " | | ???????????# # # ### | | ???????????### [ %== """"T"""" | | ?????????? u% ! [ ! = ### # """""""""" | | ????????????## # # #= / ## # ## # # | | ???????????## # # = # ####### | | ???????????# [ R # * # # #?????? | | ???????????# *!!## ######## ####?????? | | ???????????# #=% k #???############? | | ???????????# @[ #???# ?? | | ???????????# h #???#"" """"""? | | ???????????# #???#"" """"""? | | ???????????# % [[ #???#G """""" | | ???????????#! [[ #???#"" """""" | | ???????????# [[ #####"" | | ???????????# / """""" | | ???????????? !! # """""" | | ???????????? !! # """""" | | ?????????????####; + """""" | | ????????????????### ; # | | ??????????????????## ;#;##### # ! | | ???????????????????######?##???# ####+####+### | | ???????????????????????????????# #?? | | ???????????????????????????????# #?? | | ???????????????????????????????# """ """ """ #?? | | ???????????????????????????????# """ """ """ #?? | | ???????????????????????????????# """ """ """ #?? | | ???????????????????????????????# #?? | | ???????????????????????????????# """ """ """ ### | | ???????????????????????????????# "?? """ """ | | ???????????????????????????????# ??? """ """ | | ???????????????????????????????? | | ???????????????????????????????????"" """ """ | | ??????????????????????????????????????""" """ | +----------------------------------------------------+ Best States ------------- Heat Dissipation 37 Energy Generation 18 Energy Capacity 310 Matter Stores 300 Matter Capacity 300 Sight Range 16 Terrain Scan Density 10 Armor Coverage 925 Core Shielding 30 Evasion (%) 47 Targeting Accuracy 8 Recoil Reduction 3 Offensive Hacking 10 Item Schematics ----------------- None Robot Schematics ------------------ None Fabricated ------------ Nothing Alien Tech Used ----------------- None Achievements -------------- Backstab Challenges ------------ None Game ------ Seed ParticleAuthchipWheel Manual? 0 Play Time 00:46:17 Cumulative 13.7 hours Start 2024.05.28 @ 23:13:58 End 2024.05.29 @ 00:03:46 Sessions 1 Manual Loads 0 Difficulty Rogue Special Mode None Game No. 24 Rogue 24 Adventurer 0 Explorer 0 Win Type - Total 0 Types 0/0/0/0/0/0/0/0/0 Lore% 7 Gallery% 25 Achievement% 18 Wizard Run 0 Options --------- Layout 1 ASCII 0 Keyboard 0 Movement Mouse Keybinds 0 Fullscreen 0 Font 14/SmallcapsGlow Map View 50x35 Zoom Use 0% Tactical HUD 1 Map Filters NONE Filters NONE Steam 1 RUN: 66ab7b5d-3902-4ffe-aac8-5725c93c5d37